[Event "7th Sharjah Masters 2024"]
[Site "Sharjah"]
[Date "2024.05.17"]
[Round "4.18"]
[White "Sevian, Samuel"]
[Black "Kacharava, Nikolozi"]
[Result "1-0"]
[ECO "D20"]
[WhiteElo "2699"]
[BlackElo "2527"]
[Annotator "TA"]
[PlyCount "160"]
[EventDate "2024.05.13"]
[EventType "swiss"]
[EventCountry "UAE"]
[SourceTitle "playchess.com"]
[Source "ChessBase"]
[SourceQuality "1"]
[TimeControl "5400+30"]

{[%evp 78,160,86,88,88,72,105,94,116,96,104,95,95,95,102,104,102,95,116,125,136,134,124,110,110,110,171,118,162,155,170,181,200,200,271,267,410,407,472,439,566,529,572,531,623,688,688,688,679,656,740,514,398,0,758,744,912,895,777,0,759,725,546,594,1285,972,1382,1046,1647,1024,29969,29971,29971,29973,29975,29976,29976,29976,29976,29978,29978,29979,29979,29979,29981]} 1. d4 {[%emt 0:01:53]} d5 {[%emt 0:00:21]} 2. c4 {[%emt 0:00:32]} dxc4 {[%emt 0:00:31]} 3. e4 {[%emt 0:00:24]} b5 {[%emt 0:00:57]} 4. a4 {[%emt 0:01:24]} c6 {[%emt 0:00:28]} 5. axb5 {[%emt 0:01:36]} cxb5 {[%emt 0:00:10]} 6. Nc3 {[%emt 0:00:15]} Qb6 {[%emt 0:00:42]} 7. Nd5 {[%emt 0:03:23]} Qb7 {[%emt 0:00:34]} 8. Bf4 {[%emt 0:00:33]} e5 {[%emt 0:00:39]} 9. Bxe5 {[%emt 0:00:11]} Nd7 {[%emt 0:00:48]} 10. Bf4 {[%emt 0:00:55]} Ngf6 {[%emt 0:00:44]} 11. Nc7+ {[%emt 0:00:23]} Kd8 {[%emt 0:00:32]} 12. Nxa8 {[%emt 0:00:54]} Qxe4+ {[%emt 0:00:28]} 13. Ne2 {[%emt 0:00:09]} Qxa8 {[%emt 0:00:24]} 14. Nc3 {[%emt 0:05:09]} Bb4 {[%emt 0:01:05]} 15. f3 {[%emt 0:00:48]} a5 {[%emt 0:02:02]} 16. Be2 {[%emt 0:02:35]} Re8 {[%emt 0:01:01]} 17. O-O {[%emt 0:00:20]} Qc6 {[%emt 0:00:56]} 18. Re1 {[%emt 0:02:06]} a4 {[%emt 0:03:28]} 19. Bd2 {[%emt 0:10:44]} Qb6 {[%emt 0:01:43]} 20. Kh1 {[%emt 0:10:07]} Qxd4 {[%emt 0:01:32]} 21. Qc2 {[%emt 0:00:49]} Bb7 {[%emt 0:11:16]} 22. Rad1 {[%emt 0:18:58]} Qf2 {[%emt 0:21:19]} 23. Bf4 {[%emt 0:09:13]} Re6 {[%emt 0:14:30]} 24. Bg3 {[%emt 0:03:31]} Qb6 {[%emt 0:03:02]} 25. Bf1 {[%emt 0:00:57]} Ke8 {[%emt 0:03:10]} 26. Bf2 {[%emt 0:03:29]} Qc6 {[%emt 0:05:59]} 27. Bd4 {[%emt 0:04:41]} Kf8 {[%emt 0:13:32]} 28. Qf5 {[%emt 0:01:06]} Bc5 {[%emt 0:01:40]} 29. Bxf6 {[%emt 0:07:38]} Nxf6 {[%emt 0:00:42]} 30. Re5 {[%emt 0:00:39]} Rxe5 {[%emt 0:06:23]} 31. Qxe5 {[%emt 0:00:08]} Ne8 {[%emt 0:00:24]} 32. Rd8 {[%emt 0:07:09]} Be7 {[%emt 0:01:07]} 33. Rb8 {[%emt 0:00:01]} b4 {[%emt 0:01:33]} 34. Nxa4 {[%emt 0:00:02]} f6 {[%emt 0:01:51]} 35. Qe4 {[%emt 0:02:46]} Qxe4 {[%emt 0:00:56]} 36. fxe4 {[%emt 0:00:01]} Bxe4 {[%emt 0:01:13]} 37. Bxc4 {[%emt 0:00:35]} Bd6 {[%emt 0:00:06]} 38. Rb6 {[%emt 0:00:52]} Ke7 {[%emt 0:00:09]} 39. Ra6 {[%emt 0:00:53]} Nc7 {[%emt 0:01:00]} 40. Ra5 {[%emt 0:00:07]} Bc6 {[%emt 0:00:58]} 41. Nc5 {[%emt 0:00:19]} f5 {[%emt 0:00:29]} 42. b3 {[%emt 0:01:25]} g6 {[%emt 0:00:21]} 43. Nd3 {[%emt 0:00:29]} Be4 {[%emt 0:00:17]} 44. Nf2 {[%emt 0:00:28]} Bc6 {[%emt 0:00:20]} 45. Kg1 {[%emt 0:00:29]} h5 {[%emt 0:00:23]} 46. Nd3 {[%emt 0:00:29]} Be4 {[%emt 0:00:27]} 47. g3 {[%emt 0:00:29]} Bxd3 {[%emt 0:01:00]} 48. Bxd3 {[%emt 0:00:02]} Ne6 {[%emt 0:00:24]} 49. Bc4 {[%emt 0:01:08]} Nc5 {[%emt 0:00:51]} 50. Kg2 {[%emt 0:00:04]} Kf6 {[%emt 0:00:16]} 51. Rb5 {[%emt 0:00:06]} Ne4 {[%emt 0:00:31]} (51... Nd7 $16 {keeps fighting.} 52. Rd5 Ke7) 52. Rb7 {[%emt 0:00:20]} ({White should play} 52. Bd5 $18) 52... Nd2 {[%emt 0:00:27]} 53. Bg8 {[%emt 0:00:15]} Ne4 {[%emt 0:00:23]} 54. Rb6 {[%emt 0:00:10]} Ke7 {[%emt 0:00:51]} 55. Bd5 {[%emt 0:00:11]} Nc3 {[%emt 0:01:05]} 56. Bf7 {[%emt 0:01:44]} Bc7 {[%emt 0:00:00]} (56... g5 $142 57. Bxh5 Ne4) 57. Rb7 $18 {[%emt 0:00:15]} ({Worse is} 57. Rxb4 Kxf7 58. Rb7 Nd5 $17) 57... Kxf7 {[%emt 0:00:27]} 58. Rxc7+ {[%emt 0:00:02]} Ke6 {[%emt 0:00:27]} 59. Rc6+ {[%emt 0:00:04]} Kf7 {[%emt 0:00:32]} 60. Rd6 {[%emt 0:00:45]} g5 {[%emt 0:00:31]} 61. Rd4 {[%emt 0:00:22]} Na2 {[%emt 0:00:12]} 62. Rd5 {[%emt 0:00:10]} Ke6 {[%emt 0:00:20]} 63. Rb5 {[%emt 0:00:05]} g4 {[%emt 0:00:41]} 64. Kf1 {[%emt 0:00:44]} Kf6 {[%emt 0:00:19]} 65. Kg2 $2 {[%emt 0:02:03]} (65. Kg1) 65... Ke6 $1 $18 {[%emt 0:00:31]} 66. h4 {[%emt 0:01:20]} Kf6 {[%emt 0:00:18]} 67. Kf1 {[%emt 0:01:06]} Ke6 {[%emt 0:00:09]} 68. Kg2 {[%emt 0:00:25]} Kf6 {[%emt 0:00:13]} 69. Rc5 {[%emt 0:00:25]} Nc3 {[%emt 0:00:34]} 70. Rc6+ {[%emt 0:00:04]} Ke5 {[%emt 0:01:44]} 71. Rh6 {[%emt 0:00:05]} Ne4 {[%emt 0:00:30]} 72. Rxh5 {[%emt 0:00:04]} Nc5 {[%emt 0:00:13]} 73. Rh6 {[%emt 0:00:02]} Nxb3 {[%emt 0:00:05]} 74. Rb6 {[%emt 0:00:02]} Nd2 {[%emt 0:00:38]} 75. h5 {[%emt 0:00:24]} Ne4 {[%emt 0:00:34]} 76. h6 {[%emt 0:00:05]} Ng5 {[%emt 0:00:41]} 77. Rb7 {[%emt 0:00:16]} b3 {[%emt 0:00:46]} 78. h7 {[%emt 0:00:05]} Nxh7 {[%emt 0:00:07]} 79. Rxh7 {[%emt 0:00:04]} Kd4 {[%emt 0:00:08]} 80. Rb7 {[%emt 0:00:05]} Kd5 {[%emt 0:01:50]} 1-0

[Event "7th Sharjah Masters 2024"]
[Site "Sharjah"]
[Date "2024.05.17"]
[Round "4.19"]
[White "Deac, Bogdan-Daniel"]
[Black "Vokhidov, Shamsiddin"]
[Result "1/2-1/2"]
[ECO "A13"]
[WhiteElo "2693"]
[BlackElo "2592"]
[Annotator "TA"]
[PlyCount "97"]
[EventDate "2024.05.13"]
[EventType "swiss"]
[EventCountry "UAE"]
[SourceTitle "playchess.com"]
[Source "ChessBase"]
[SourceQuality "1"]
[TimeControl "5400+30"]

{[%evp 38,97,0,0,0,-6,0,0,0,0,0,0,39,0,0,-15,-18,-15,0,0,12,16,14,0,0,0,0,0,0,0,0,0,0,0,0,0,0,0,0,0,0,0,6,0,3,0,0,0,0,0,0,0,0,0,0,0,0,0,0,0,0,0]} 1. Nf3 {[%emt 1:31:00]} Nf6 {[%emt 1:31:00]} 2. c4 {[%emt 0:00:30]} e6 {[%emt 0:00:30]} 3. b3 {[%emt 0:00:30]} d5 {[%emt 0:00:30]} 4. Bb2 {[%emt 0:00:30]} c5 {[%emt 0:00:30]} 5. cxd5 {[%emt 0:00:30]} exd5 {[%emt 0:00:30]} 6. g3 {[%emt 0:00:30] A13: English Opening: 1...e6.} Nc6 {[%emt 0:00:30]} 7. Bg2 {[%emt 0:00:30]} d4 {[%emt 0:00:30]} 8. O-O {[%emt 0:00:30]} Be7 {[%emt 0:00:30]} 9. Na3 {[%emt 0:00:30]} O-O {[%emt 0:00:30]} 10. e3 {[%emt 0:00:30]} Bf5 {[%emt 0:00:30]} 11. exd4 {[%emt 0:00:30]} cxd4 {[%emt 0:00:30]} 12. Nc4 {[%emt 0:00:30]} Rc8 {[%emt 0:00:30]} 13. Re1 {[%emt 0:00:30]} Bc5 $146 {[%emt 0:00:30]} ({Predecessor:} 13... Re8 14. Nfe5 Nb4 15. Bxb7 Rc7 16. Bg2 Nc2 17. Nc6 Qd7 18. Nxe7+ Rxe7 19. Rxe7 Qxe7 {1-0 Mendonca,L (2608)-Budisavljevic,L (2475) Chessable Masters Play In rapid 2024 (7)}) 14. a3 {[%emt 0:00:30]} b5 {[%emt 0:00:30]} 15. Nce5 {[%emt 0:00:30]} Be4 {[%emt 0:00:30]} 16. Nxc6 {[%emt 0:00:30]} Bxc6 {[%emt 0:00:30]} 17. Ne5 {[%emt 0:00:30]} Bxg2 {[%emt 0:00:30]} 18. Kxg2 {[%emt 0:00:30]} Bb6 {[%emt 0:00:30]} 19. a4 {[%emt 0:00:30]} Re8 {[%emt 0:00:30]} 20. Nf3 {[%emt 0:00:30]} Ne4 {[%emt 0:00:30]} 21. axb5 {[%emt 0:00:30]} Qd5 {[%emt 0:00:30]} 22. Ra4 {[%emt 0:00:30]} g5 {[%emt 0:00:30]} (22... Qxb5 $6 23. Bxd4 Nc5 24. Bxc5 Qxc5 25. d4 Rxe1 26. Qxe1 $14 (26. Nxe1 Qd5+ 27. Qf3 Qd7 $14)) 23. h3 {[%emt 0:00:30]} (23. Nxd4 $2 Nc5+ (23... Nxd2+ $2 24. Kg1 $19) 24. Qf3 Qxf3+ 25. Nxf3 Rxe1 (25... Nxb3 26. Rxe8+ Rxe8 27. Rc4 $16) 26. Nxe1 Nxa4 27. bxa4 Rc4 $19) (23. Bxd4 g4 24. Bxb6 axb6 $17) 23... h5 {[%emt 0:00:30]} (23... Qxb5 24. Bxd4 g4 25. hxg4 $18) 24. d3 $1 {[%emt 0:00:30]} (24. Nxd4 Nc5+ (24... Nxd2+ $2 25. Kg1 $19) 25. Qf3 Qxf3+ 26. Nxf3 Rxe1 (26... Nxb3 $2 27. Rc4 $18) 27. Nxe1 Nxa4 28. bxa4 Rc4 $17) (24. Bxd4 g4 25. hxg4 hxg4 26. Bxb6 axb6 $17) 24... Nd6 {[%emt 0:00:30]} 25. Rxe8+ {[%emt 0:00:30]} (25. Bxd4 $2 Rxe1 26. Qxe1 g4 $19) 25... Rxe8 {[%emt 0:00:30]} 26. Kg1 {[%emt 0:00:30]} ({But not} 26. Bxd4 g4 27. Bxb6 (27. hxg4 $2 hxg4 28. Bxb6 gxf3+ 29. Qxf3 Qxf3+ 30. Kxf3 axb6 $19) 27... gxf3+ (27... Qxf3+ 28. Qxf3 gxf3+ 29. Kxf3 $17) 28. Qxf3 Qxf3+ (28... Qxb5 $2 {perishes.} 29. Bxa7 Qxb3 30. Ra5 $18) 29. Kxf3 axb6 $17) 26... Nxb5 {[%emt 0:00:30]} 27. Rc4 {[%emt 0:00:30]} f6 {[%emt 0:00:30]} (27... Nc3 {keeps more tension.} 28. Bxc3 dxc3 29. g4 hxg4 30. hxg4 Re6) 28. Nd2 {[%emt 0:00:30]} Nd6 {[%emt 0:00:30]} 29. Rc1 {[%emt 0:00:30]} h4 {[%emt 0:00:30]} 30. g4 {[%emt 0:00:30]} Kf7 {[%emt 0:00:30]} 31. Qf3 {[%emt 0:00:30]} Qxf3 {[%emt 0:00:30]} 32. Nxf3 {[%emt 0:00:30]} Nb5 33. Kf1 {[%emt 0:00:30]} Re7 {[%emt 0:01:00]} 34. Rc4 {[%emt 0:00:30]} Rd7 {[%emt 0:00:30]} 35. Ke2 {[%emt 0:00:30]} Re7+ {[%emt 0:00:30]} 36. Kf1 {[%emt 0:00:30]} Rd7 {[%emt 0:00:30]} 37. Bc1 {[%emt 0:00:30]} Nc7 {[%emt 0:00:30]} 38. Nd2 {[%emt 0:00:30]} Ne6 {[%emt 0:00:30]} 39. Ne4 {[%emt 0:00:30]} Rd5 {[%emt 0:00:30]} 40. b4 {[%emt 0:00:30]} Bd8 {[%emt 0:00:30]} 41. Bd2 {[%emt 0:00:30]} a5 {[%emt 0:00:30]} 42. Kg2 {[%emt 0:00:30]} axb4 {[%emt 0:00:30]} 43. Rxb4 {[%emt 0:00:30]} Bc7 {[%emt 0:00:30]} 44. Rb7 Kg6 {[%emt 0:00:30]} 45. Ra7 {[%emt 0:01:00]} Rb5 {[%emt 0:00:30]} 46. Ra6 {[%emt 0:00:30]} Kf7 {[%emt 0:00:30]} 47. Ra7 {[%emt 0:00:30]} Kg6 {[%emt 0:00:30]} 48. Ra6 {[%emt 0:00:30]} Kf7 {[%emt 0:00:30]} 49. Ra7 {[%emt 0:00:30]} 1/2-1/2

[Event "7th Sharjah Masters 2024"]
[Site "Sharjah"]
[Date "2024.05.17"]
[Round "4.20"]
[White "Nihal Sarin"]
[Black "Nikitenko, Mihail"]
[Result "1-0"]
[ECO "C95"]
[WhiteElo "2680"]
[BlackElo "2529"]
[Annotator "TA"]
[PlyCount "203"]
[EventDate "2024.05.13"]
[EventType "swiss"]
[EventCountry "UAE"]
[SourceTitle "playchess.com"]
[Source "ChessBase"]
[SourceQuality "1"]
[TimeControl "5400+30"]

{[%evp 26,203,33,33,41,40,44,45,37,35,59,59,103,27,44,44,42,42,54,39,36,36,19,22,31,36,59,68,92,89,87,90,130,136,163,170,181,174,271,33,210,231,229,220,274,117,117,116,109,11,5,6,14,-14,-14,-25,-12,-10,-11,-11,-9,-8,0,0,64,41,56,1,50,0,157,182,172,69,66,80,44,62,104,77,185,177,176,51,58,49,198,181,191,165,181,186,182,167,213,172,297,307,289,289,343,325,462,458,533,532,552,556,557,549,633,609,647,657,850,926,1050,974,1060,1022,979,983,768,552,567,304,791,664,825,911,762,785,719,314,247,212,245,0,421,367,275,273,441,0,0,0,474,308,381,281,375,302,293,314,343,358,365,358,461,431,1104,1087,1112,1112,1100,1093,1104,1104,1088,1017,1806,1791,29967,29970,29969,29969,29968,29967,29966,29968]} 1. e4 {[%emt 1:31:00]} e5 {[%emt 1:31:00]} 2. Nf3 {[%emt 0:00:30]} Nc6 {[%emt 0:00:30]} 3. Bb5 {[%emt 0:00:30]} a6 {[%emt 0:00:30]} 4. Ba4 {[%emt 0:00:30]} Nf6 {[%emt 0:00:30]} 5. O-O {[%emt 0:00:30]} Be7 {[%emt 0:00:30]} 6. Re1 {[%emt 0:00:30]} b5 {[%emt 0:00:30]} 7. Bb3 {[%emt 0:00:30]} d6 {[%emt 0:00:30]} 8. c3 {[%emt 0:00:30]} O-O {[%emt 0:00:30]} 9. h3 {[%emt 0:00:30]} Nb8 {[%emt 0:00:30]} 10. d4 {[%emt 0:00:30]} Nbd7 {[%emt 0:00:30]} 11. Nbd2 {[%emt 0:00:30][%cal Bb1d2,Bd2f1,Bf1g3][%mdl 32]} Bb7 {[%emt 0:00:30]} 12. Bc2 {[%emt 0:00:30][%cal Bb3c2,Bc2d3,Bd3b5,Bb5c4][%mdl 32]} Re8 {[%emt 0:00:30]} 13. Nf1 {[%emt 0:00:30]} Bf8 {[%emt 0:00:30]} 14. Ng3 {[%emt 0:00:30]} h6 {[%emt 0:00:30]} 15. a4 {[%emt 0:00:30]} c6 {[%emt 0:00:30]} 16. Be3 {[%emt 0:00:30]} Qc7 {[%emt 0:00:30] White is slightly better.} 17. Bd3 {[%emt 0:00:30]} Rad8 {[%emt 0:00:30]} 18. Qc2 {[%emt 0:00:30]} d5 {[%emt 0:00:30]} 19. Nxe5 {[%emt 0:00:30]} (19. dxe5 $1 $16 dxe4 20. Nxe4) 19... Nxe5 $11 {[%emt 0:00:30]} 20. dxe5 {[%emt 0:00:30]} dxe4 {[%emt 0:00:30]} 21. Bxb5 {[%emt 0:00:30]} Nd5 {[%emt 0:00:30]} 22. Bc4 {[%emt 0:00:30]} Qxe5 {[%emt 0:00:30]} 23. Bd4 {[%emt 0:00:30]} Qc7 {[%emt 0:00:30]} 24. Nxe4 {[%emt 0:00:30] With the idea b4.} (24. Rxe4 $2 c5 25. Bxg7 (25. Rxe8 $2 Rxe8 26. Bxg7 Bxg7 $19) 25... Bxg7 $19 (25... Kxg7 $2 26. Nh5+ Kh8 27. Rxe8 $18)) 24... c5 {[%emt 0:00:30]} 25. Be3 {[%emt 0:00:30][%cal Oe3h6]} f5 {[%emt 0:00:30] [#]} 26. Ng5 {[%emt 0:00:30][%cal Oc2f5] Threatens to win with Qxf5!} hxg5 {[%emt 0:00:30]} (26... g6 27. Nf3) 27. Bxg5 {[%emt 0:00:30]} Be7 {[%emt 0:00:30]} 28. Qxf5 {[%emt 0:00:30]} Qd7 {[%emt 0:00:30]} 29. Qg6 {[%emt 0:00:30] White has more active pieces.} Kf8 {[%emt 0:00:30]} 30. Re5 {[%emt 0:00:30]} (30. Bxa6 $6 Bxa6 31. Bxe7+ Rxe7 $16) 30... Bxg5 {[%emt 0:00:30]} 31. Rxg5 {[%emt 0:00:30]} Nf6 {[%emt 0:00:30] Prevents Rh5} (31... Re6 $142 32. Qh7 Qf7) 32. Rxc5 $2 {[%emt 0:00:30]} ({White has to play} 32. Rf5 $1 $18 {[%cal Rf5f6] Rxf6+ would kill now.} Re6 33. Bxe6 Qxe6 34. Rxc5) 32... Re7 $2 {[%emt 0:00:30]} (32... Rc8 $14 33. Qg5 Rxc5 34. Qxc5+ Qe7 35. Qxe7+ Rxe7) 33. Rf5 $1 $18 {[%emt 0:00:30]} Qc6 {[%emt 0:00:30]} 34. Rf4 {[%emt 0:00:30]} Rde8 {[%emt 0:00:30]} 35. Rf1 {[%emt 0:00:30]} (35. Rd1 $1 $18) 35... Rd7 $16 {[%emt 0:00:30][%cal Oe8e4]} 36. Rh4 {[%emt 0:00:30] Strongly threatening Rh8+.} Ke7 {[%emt 0:00:30]} 37. b4 {[%emt 0:00:30]} (37. Qxg7+ $16 Kd8 38. Qg5) 37... Kd8 $11 {[%emt 0:00:30][%cal Oe8e4]} 38. b5 {[%emt 0:00:30]} Qc7 {[%emt 0:00:30]} (38... Qc5 $5 39. Bd3 (39. bxa6 Be4 $11) 39... Qxc3 $11) 39. Qg5 {[%emt 0:00:30]} Be4 {[%emt 0:00:30]} 40. Ba2 {[%emt 0:00:30]} Bd3 {[%emt 0:00:30]} 41. Rc1 {[%emt 0:00:30]} axb5 {[%emt 0:00:30]} 42. axb5 {[%emt 0:00:30]} Kc8 {[%emt 0:00:30]} 43. Rd4 {[%emt 0:00:30] [#]} Rde7 $1 {[%emt 0:00:30] ( -> ...Re1+)} 44. f4 $1 {[%emt 0:00:30]} (44. Rxd3 $2 Re1+ 45. Rxe1 Rxe1#) 44... Re2 {[%emt 0:00:30]} (44... Re1+ $6 45. Rxe1 Rxe1+ 46. Kh2 Qxc3 47. Ra4 $16) (44... Rd8 $11 45. Rb4 Qb6+ (45... Qa7+ 46. b6 $11) 46. Kh2 Qf2) 45. Rxd3 $14 {[%emt 0:00:30]} Rxa2 {[%emt 0:00:30]} 46. Kh2 {[%emt 0:00:30]} (46. c4 $14) 46... Ra4 {[%emt 0:00:30]} (46... Ree2 $11 {is superior.} 47. Qf5+ Kb8) 47. Rf1 {[%emt 0:00:30]} (47. Qf5+ Kb8 48. b6 Qxb6 $17 (48... Qxf4+ 49. Qxf4+ Rxf4 50. Rg3 $11)) (47. c4 $14) 47... Rc4 $2 {[%emt 0:00:30] [#]} ({Black should try} 47... Re7 $11) 48. b6 $1 $16 {[%emt 0:00:30][%mdl 512]} Qxb6 {[%emt 0:00:30] [#]} 49. Qxg7 {[%emt 0:00:30]} (49. Ra1 $1 $18) 49... Rg8 $14 {[%emt 0:00:30]} 50. Qf7 {[%emt 0:00:30]} Rc7 {[%emt 0:00:30][%cal Bc4c7,Bc7g7,Bg7g3][%mdl 32]} 51. Qa2 {[%emt 0:00:30] Dancing on a razor blade.} Rcg7 {[%emt 0:00:30]} 52. Rf2 {[%emt 0:00:30]} Qc6 {[%emt 0:00:30]} (52... Ra7 $16 53. Qc2 Rgg7) 53. Rd4 $36 {[%emt 0:00:30][%mdl 2048] White is in control.} Nd7 {[%emt 0:00:30]} 54. Qd5 {[%emt 0:00:30]} (54. g4 $18 {aiming for Rc4.} Rh8 55. Qc4 Qxc4 56. Rxc4+ Kd8 57. Kg3) 54... Qxd5 {[%emt 0:00:30]} 55. Rxd5 {[%emt 0:00:30]} Rg3 {[%emt 0:00:30]} ({Black should play} 55... Re8 $14) 56. Rfd2 $18 {[%emt 0:00:30]} Nb6 {[%emt 0:00:30]} 57. R5d3 {[%emt 0:00:30]} R3g7 {[%emt 0:00:30]} 58. g4 {[%emt 0:00:30][%cal Bg2g4,Bg4g5][%mdl 32]} Kc7 {[%emt 0:00:30]} 59. Re2 {[%emt 0:00:30] Wards off Re7} Nd7 {[%emt 0:00:30]} (59... Rh7 $142 60. Kg3 Ra8) 60. Kg3 {[%emt 0:00:30]} Rh8 {[%emt 0:00:30]} (60... Nf6 {keeps fighting.}) 61. h4 {[%emt 0:00:30]} Rgh7 {[%emt 0:00:30]} 62. Rh2 {[%emt 0:00:30]} Nf6 {[%emt 0:00:30]} 63. g5 {[%emt 0:00:30]} Ne4+ {[%emt 0:00:30]} (63... Nh5+ {is a better defense.} 64. Kg4 Re7) 64. Kg4 {[%emt 0:00:30]} Rg8 {[%emt 0:00:30][%cal Oh7h4]} 65. Rd4 {[%emt 0:00:30]} Nf6+ {[%emt 0:00:30][%cal Be4f6,Bf6d7,Bd7e5,Be5c6][%mdl 32]} 66. Kf3 {[%emt 0:00:30]} Nd7 {[%emt 0:00:30]} 67. h5 {[%emt 0:00:30]} Rf7 {[%emt 0:00:30]} 68. Ra2 {[%emt 0:00:30]} Ne5+ {[%emt 0:00:30]} 69. Kg3 {[%emt 0:00:30]} Nc6 {[%emt 0:00:30]} 70. Rc4 {[%emt 0:00:30]} Kb6 {[%emt 0:00:30] Inhibits Ra7.} 71. Rb2+ {[%emt 0:00:30]} Kc7 {[%emt 0:00:30]} 72. Kg4 {[%emt 0:00:30]} Rd7 {[%emt 0:00:30]} 73. g6 {[%emt 0:00:30]} Rd1 {[%emt 0:00:30]} 74. f5 {[%emt 0:00:30]} Rg1+ {[%emt 0:00:30]} 75. Kf4 {[%emt 0:00:30]} Rf1+ $2 {[%emt 0:00:30]} (75... Rh1 76. Kg5 Rg1+ 77. Rg4 Rf1) 76. Kg5 {[%emt 0:00:30]} Rg1+ {[%emt 0:00:30]} 77. Rg4 {[%emt 0:00:30]} Rh1 {[%emt 0:00:30]} 78. f6 {[%emt 0:00:30]} Ne5 {[%emt 0:00:30]} 79. Re4 {[%emt 0:00:30]} (79. g7 $142) 79... Nf7+ {[%emt 0:00:30]} 80. Kg4 {[%emt 0:00:30]} Nh6+ {[%emt 0:00:30]} 81. Kg5 $2 {[%emt 0:00:30]} (81. Kg3) 81... Nf7+ {[%emt 0:00:30]} 82. Kf4 {[%emt 0:00:30]} ({Not} 82. Kg4 Nh6+ 83. Kg3 (83. Kg5 Nf7+ $16) 83... Rxh5 $18) 82... Rh4+ {[%emt 0:00:30]} 83. Ke3 {[%emt 0:00:30]} Rh3+ {[%emt 0:00:30]} 84. Kf4 {[%emt 0:00:30]} Rh4+ {[%emt 0:00:30]} 85. Ke3 {[%emt 0:00:30]} Rh3+ {[%emt 0:00:30] [#] White stays focused until the end.} 86. Kd2 $1 {[%emt 0:00:30]} Nd6 {[%emt 0:00:30]} 87. Rf4 {[%emt 0:00:30] f7 is the strong threat.} Rh2+ {[%emt 0:00:30]} 88. Kc1 {[%emt 0:00:30]} Rh1+ {[%emt 0:00:30]} 89. Kc2 {[%emt 0:00:30] And now f7 would win.} Rh2+ {[%emt 0:00:30]} 90. Kb3 {[%emt 0:00:30]} Rxh5 {[%emt 0:00:30]} 91. Rg2 {[%emt 0:00:30] Hoping for f7.} Rb8+ {[%emt 0:00:30]} 92. Rb4 {Black must now prevent Rxb8.} Rg8 {[%emt 0:00:30]} (92... Ra8 $142 93. g7 Rf5) 93. f7 {[%emt 0:01:00]} Nxf7 {[%emt 0:00:30]} 94. gxf7 {[%emt 0:00:30][%mdl 4096] Endgame. KRR-KRR} Rf8 {[%emt 0:00:30]} 95. Rf4 {[%emt 0:00:30] White threatens Rg8 and mate.} Rh7 {[%emt 0:00:30]} 96. Rgf2 {[%emt 0:00:30]} Kd6 {[%emt 0:00:30]} 97. c4 {[%emt 0:00:30][%cal Bc3c4,Bc4c5][%mdl 32]} Ke7 {[%emt 0:00:30]} 98. c5 {[%emt 0:00:30]} Rb8+ {[%emt 0:00:30]} 99. Kc4 {[%emt 0:00:30] White mates.} Kf8 {[%emt 0:00:30]} 100. Rg2 {[%emt 0:00:30]} Rxf7 {[%emt 0:00:30]} 101. Rxf7+ {[%emt 0:00:30]} Kxf7 {[%emt 0:00:30]} 102. Re2 {[%emt 0:00:30] Weighted Error Value: White=0.30/Black=0.30.  Loses game:     	---       	Black=1      Missed win:     	White=1     	---        Mistake:       	White=8     	Black=11     Inaccurate:     	White=1     	Black=3      OK:         	White=24    	Black=21     Best:        	White=12    	Black=16     Strong:       	White=3     	---        Brilliant:      	White=1     	---} 1-0